bitfinex/quotes_BTCUSD_20230111
["timestamp","ask_amount","ask_price","bid_price","bid_amount"]
[1673458286121,3.7239777,17386.0,17385.0,0.0906763]
[1673458288485,3.55118646,17386.0,17385.0,0.0906763]
[1673458289505,3.75098349,17386.0,17385.0,0.0906763]
[1673458289761,4.63095733,17386.0,17385.0,0.0906763]
[1673458291532,4.45801756,17386.0,17385.0,0.0906763]
[1673458294088,4.63095733,17386.0,17385.0,0.0906763]
[1673458294350,4.45799589,17386.0,17385.0,0.0906763]
[1673458296129,5.29679547,17386.0,17385.0,0.0906763]
[1673458296341,5.25172599,17386.0,17385.0,0.0906763]
[1673458296879,5.24898885,17386.0,17385.0,0.08074577]
[1673458297384,5.64931051,17386.0,17385.0,0.08574577]
[1673458297631,5.64931051,17386.0,17385.0,0.005]
[1673458298158,5.21797366,17386.0,17385.0,0.005]
[1673458298416,5.64851106,17386.0,17385.0,0.005]
[1673458298919,5.64851032,17386.0,17385.0,0.005]
[1673458299193,5.21797366,17386.0,17385.0,0.005]
[1673458300475,5.72112017,17386.0,17385.0,0.005]
[1673458300721,5.21797366,17386.0,17385.0,0.005]
[1673458301999,6.34456661,17386.0,17385.0,0.005]
[1673458302213,5.34849149,17386.0,17385.0,0.005]
[1673458302467,5.37816983,17386.0,17385.0,0.005]
[1673458302723,5.07816983,17386.0,17385.0,0.005]
[1673458303471,5.07816983,17386.0,17385.0,0.00489375]
[1673458303720,5.54356983,17386.0,17385.0,0.00489375]
[1673458303965,5.24356983,17386.0,17385.0,0.00489375]
[1673458304476,6.10556401,17386.0,17385.0,0.00489375]
[1673458304725,5.58803115,17386.0,17385.0,0.00489375]
[1673458305219,5.54356983,17386.0,17385.0,0.00489375]
[1673458305734,5.58802702,17386.0,17385.0,0.00489375]
[1673458306232,5.24356983,17386.0,17385.0,0.00489375]
[1673458308429,5.54356983,17386.0,17385.0,0.00489375]
[1673458308688,5.113052,17386.0,17385.0,0.00489375]
[1673458309123,5.54374696,17386.0,17385.0,0.00489375]
[1673458309416,5.113052,17386.0,17385.0,0.00489375]
[1673458310185,5.2437467,17386.0,17385.0,0.00489375]
[1673458310434,4.813052,17386.0,17385.0,0.00489375]
[1673458310690,5.875484,17386.0,17385.0,0.00489375]
[1673458310949,5.87548647,17386.0,17385.0,0.00489375]
[1673458311172,5.24383144,17386.0,17385.0,0.00489375]
[1673458311459,5.92711886,17386.0,17385.0,0.00489375]
[1673458312643,5.24383144,17386.0,17385.0,0.00489375]
[1673458313676,5.7787915,17386.0,17385.0,0.00489375]
[1673458315486,5.24383144,17386.0,17385.0,0.00489375]
[1673458316363,4.813052,17386.0,17385.0,0.00489375]
[1673458317663,4.70054835,17386.0,17385.0,0.00489375]
[1673458320615,5.51815257,17386.0,17385.0,0.00489375]
[1673458321390,5.78848109,17386.0,17385.0,0.00489375]
[1673458321657,7.51467283,17386.0,17385.0,0.00489375]
[1673458322443,5.78848109,17386.0,17385.0,0.00489375]
[1673458323710,6.78018109,17386.0,17385.0,0.00489375]
[1673458324744,8.50637887,17386.0,17385.0,0.00489375]
[1673458325779,6.78018109,17386.0,17385.0,0.00489375]
[1673458326505,6.50985257,17386.0,17385.0,0.00489375]
[1673458326761,5.84228923,17386.0,17385.0,0.00489375]
[1673458327018,5.32468501,17386.0,17385.0,0.00489375]
[1673458327536,5.32468501,17386.0,17385.0,0.09124853]
[1673458330526,4.64711364,17386.0,17385.0,0.09124853]
[1673458330793,5.30266018,17386.0,17385.0,0.09124853]
[1673458333634,4.94711364,17386.0,17385.0,0.09124853]
[1673458334437,5.46471786,17386.0,17385.0,0.09124853]
[1673458335285,5.79303252,17386.0,17385.0,0.09124853]
[1673458336477,5.16471786,17386.0,17385.0,0.09124853]
[1673458337875,5.46471786,17386.0,17385.0,0.09124853]
[1673458338140,6.12286066,17386.0,17385.0,0.09124853]
[1673458338397,5.00011786,17386.0,17385.0,0.09124853]
[1673458339907,5.30011786,17386.0,17385.0,0.09124853]
[1673458340959,5.86168105,17386.0,17385.0,0.09124853]
[1673458341466,5.94813116,17386.0,17385.0,0.09113342]
[1673458341992,5.64813116,17386.0,17385.0,0.09113342]
[1673458342496,5.30011786,17386.0,17385.0,0.09113342]
[1673458343034,5.94910887,17386.0,17385.0,0.09113342]
[1673458343292,5.30011786,17386.0,17385.0,0.09113342]
[1673458343600,5.67680442,17386.0,17385.0,0.09113342]
[1673458343876,5.97680442,17386.0,17385.0,0.09113342]
[1673458344400,5.30011786,17386.0,17385.0,0.09113342]
[1673458344647,5.86578286,17386.0,17385.0,0.09113342]
[1673458345185,5.30011786,17386.0,17385.0,0.09113342]
[1673458346171,6.02104552,17386.0,17385.0,0.09113342]
[1673458346433,5.30011786,17386.0,17385.0,0.09113342]
[1673458346934,7.02626745,17386.0,17385.0,0.09113342]
[1673458349466,5.59811798,17386.0,17385.0,0.09113342]
[1673458351535,5.08051376,17386.0,17385.0,0.09113342]
[1673458351800,5.59811798,17386.0,17385.0,0.09113342]
[1673458352589,5.08051376,17386.0,17385.0,0.09113342]
[1673458353358,5.59811798,17386.0,17385.0,0.09113342]
[1673458353819,5.00011786,17386.0,17385.0,0.09113342]
[1673458354329,5.51185544,17386.0,17385.0,0.09113342]
[1673458355186,5.00011786,17386.0,17385.0,0.09113342]
[1673458355619,5.30011786,17386.0,17385.0,0.09113342]
[1673458355878,5.68820917,17386.0,17385.0,0.09113342]
[1673458356410,5.98820917,17386.0,17385.0,0.09113342]
[1673458357117,5.68820917,17386.0,17385.0,0.09113342]
[1673458357369,5.30011786,17386.0,17385.0,0.09113342]
[1673458357619,7.02627226,17386.0,17385.0,0.09113342]
[1673458358393,5.97191177,17386.0,17385.0,0.09113342]
[1673458359161,5.67191177,17386.0,17385.0,0.09113342]
[1673458359420,5.97191177,17386.0,17385.0,0.09113342]
[1673458359672,5.00011786,17386.0,17385.0,0.09113342]
[1673458360683,5.30011786,17386.0,17385.0,0.09113342]
[1673458361189,7.7195487,17386.0,17385.0,0.09113342]
[1673458361447,5.99339774,17386.0,17385.0,0.09113342]
[1673458362227,5.69339774,17386.0,17385.0,0.09113342]
[1673458362724,5.99339774,17386.0,17385.0,0.09113342]
[1673458363026,5.00011786,17386.0,17385.0,0.09113342]
[1673458363277,5.72242287,17386.0,17385.0,0.09113342]
[1673458363539,6.02242287,17386.0,17385.0,0.09113342]
[1673458363783,5.72242287,17386.0,17385.0,0.09113342]
[1673458365056,5.00011786,17386.0,17385.0,0.09105716]
[1673458365388,7.0262617,17386.0,17385.0,0.09105716]
[1673458367129,7.54022538,17386.0,17385.0,0.09105716]
[1673458367407,7.0262617,17386.0,17385.0,0.09105716]
[1673458368178,7.68376027,17386.0,17385.0,0.09105716]
[1673458368697,7.38376027,17386.0,17385.0,0.09105716]
[1673458369259,7.68376027,17386.0,17385.0,0.09105716]
[1673458370743,7.0262617,17386.0,17385.0,0.09105716]
[1673458371501,7.5710627,17386.0,17385.0,0.09105716]
[1673458371997,7.0262617,17386.0,17385.0,0.09105716]
[1673458372480,7.70558696,17386.0,17385.0,0.09105716]
[1673458373190,7.0262617,17386.0,17385.0,0.09105716]
[1673458374686,7.61520411,17386.0,17385.0,0.09105716]
[1673458376471,7.31520411,17386.0,17385.0,0.09105716]
[1673458376722,5.58906027,17386.0,17385.0,0.09105716]
[1673458378250,7.31521236,17386.0,17385.0,0.09105716]
[1673458378508,5.58906027,17386.0,17385.0,0.09105716]
[1673458379809,7.29663034,17386.0,17385.0,0.09105716]
[1673458380325,7.13484036,17386.0,17385.0,0.09105716]
[1673458380604,7.13484036,17386.0,17385.0,0.07403375]
[1673458381847,8.01592243,17386.0,17385.0,0.07403375]
[1673458382112,7.2966138,17386.0,17385.0,0.07403375]
[1673458384422,7.70879846,17386.0,17385.0,0.07403375]
[1673458384944,7.1294074,17386.0,17385.0,0.07403375]
[1673458385224,6.85908051,17386.0,17385.0,0.07403375]
[1673458385460,7.96433016,17386.0,17385.0,0.07403375]
[1673458386230,5.93814457,17386.0,17385.0,0.07403375]
[1673458389241,6.23814457,17386.0,17385.0,0.07403375]
[1673458389511,5.27038349,17386.0,17385.0,0.07403375]
[1673458389762,5.96211892,17386.0,17385.0,0.07403375]
[1673458390547,5.69178611,17386.0,17385.0,0.07403375]
[1673458392589,5.00005068,17386.0,17385.0,0.07403375]
[1673458392868,5.71202647,17386.0,17385.0,0.07403375]
[1673458393859,5.87742647,17386.0,17385.0,0.07403375]
[1673458394134,5.46545068,17386.0,17385.0,0.07403375]
[1673458394405,5.16545068,17386.0,17385.0,0.07403375]
[1673458395766,5.72282538,17386.0,17385.0,0.07403375]
[1673458398799,5.20528834,17386.0,17385.0,0.07403375]
[1673458400092,3.62375599,17386.0,17385.0,0.07403375]
[1673458400610,2.8183953,17386.0,17385.0,0.07403375]
[1673458400863,2.61419519,17386.0,17385.0,0.07403375]
[1673458401227,2.26910132,17386.0,17385.0,0.07403375]
[1673458402636,2.01036476,17386.0,17385.0,0.07403375]
[1673458403141,0.6873747,17386.0,17385.0,0.07403375]
[1673458406007,0.6873747,17386.0,17385.0,0.07413559]
[1673458406268,0.6873747,17386.0,17385.0,0.07403375]
[1673458406774,0.9873747,17386.0,17385.0,0.07403375]
[1673458407273,0.9873747,17386.0,17385.0,0.07413559]
[1673458407547,0.9873747,17386.0,17385.0,0.07403375]
[1673458408349,0.9873747,17386.0,17385.0,0.07413559]
[1673458408597,0.9873747,17386.0,17385.0,0.07403375]
[1673458409110,0.6873747,17386.0,17385.0,0.07403375]
[1673458409364,0.6873747,17386.0,17385.0,0.07413559]
[1673458410387,0.6873747,17386.0,17385.0,0.07403375]
[1673458416334,0.6873747,17386.0,17385.0,0.07413559]
[1673458416846,0.6873747,17386.0,17385.0,0.07403375]
[1673458418098,0.6873747,17386.0,17385.0,0.07413559]
[1673458418327,0.6873747,17386.0,17385.0,0.07403375]
[1673458419355,0.6873747,17386.0,17385.0,0.07413559]
[1673458419880,0.13,17386.0,17385.0,0.07413559]
[1673458420120,0.13,17386.0,17385.0,0.67543067]
[1673458420423,0.13,17386.0,17385.0,0.67532883]
[1673458420615,0.13,17386.0,17385.0,0.67543067]
[1673458422350,0.13,17386.0,17385.0,0.67532883]
[1673458423599,0.13,17386.0,17385.0,0.84072883]
[1673458425102,0.13,17386.0,17385.0,1.41593683]
[1673458425598,0.13,17386.0,17385.0,0.84072883]
[1673458427599,0.13,17386.0,17385.0,0.84083067]
[1673458427861,0.13,17386.0,17385.0,0.84072883]
[1673458428876,0.13,17386.0,17385.0,0.84083067]
[1673458429128,0.13,17386.0,17385.0,0.84072883]
[1673458430658,0.13,17386.0,17385.0,0.23943375]
[1673458430913,0.71965899,17386.0,17385.0,0.07403375]
[1673458431166,0.89207067,17386.0,17385.0,0.07403375]
[1673458431420,1.19207067,17386.0,17385.0,0.07403375]
[1673458431680,2.85467564,17386.0,17385.0,0.07403375]
[1673458431928,3.1134122,17386.0,17385.0,0.07403375]
[1673458432691,3.6885872,17386.0,17385.0,0.07403375]
[1673458432935,3.86116483,17386.0,17385.0,0.07403375]
[1673458433720,4.43633983,17386.0,17385.0,0.07403375]
[1673458434228,3.86116483,17386.0,17385.0,0.07403375]
[1673458434986,4.43633983,17386.0,17385.0,0.07403375]
[1673458435237,3.86116483,17386.0,17385.0,0.07403375]
[1673458438610,4.22103143,17386.0,17385.0,0.07403375]
[1673458438873,4.79620643,17386.0,17385.0,0.07392709]
[1673458439370,4.22103143,17386.0,17385.0,0.07392709]
[1673458439861,4.79620643,17386.0,17385.0,0.07392709]
[1673458440584,4.22103143,17386.0,17385.0,0.07392709]
[1673458440838,4.03368107,17386.0,17385.0,0.07392709]
[1673458441607,3.52171859,17386.0,17385.0,0.07402893]
[1673458441848,3.52171859,17386.0,17385.0,0.07392709]
[1673458442098,4.03368107,17386.0,17385.0,0.07392709]
[1673458442353,3.52171859,17386.0,17385.0,0.07392709]
[1673458442861,4.03368107,17386.0,17385.0,0.07392709]
[1673458443380,3.45850607,17386.0,17385.0,0.07392709]
[1673458443897,3.11317599,17386.0,17385.0,0.07392709]
[1673458444140,2.60121351,17386.0,17385.0,0.07392709]
[1673458444903,3.11317599,17386.0,17385.0,0.07392709]
[1673458445420,2.60121351,17386.0,17385.0,0.07392709]
[1673458446172,3.11317599,17386.0,17385.0,0.07392709]
[1673458446477,3.45850607,17386.0,17385.0,0.07392709]
[1673458446711,3.71706394,17386.0,17385.0,0.07392709]
[1673458447199,3.28581114,17386.0,17385.0,0.07392709]
[1673458447454,3.86098614,17386.0,17385.0,0.07392709]
[1673458456614,3.34902366,17386.0,17385.0,0.07392709]
[1673458456858,3.17637758,17386.0,17385.0,0.07392709]
[1673458457154,3.68834006,17386.0,17385.0,0.07392709]
[1673458458486,3.55834006,17386.0,17385.0,0.07392709]
[1673458458735,3.69334006,17386.0,17385.0,0.07392709]
[1673458462148,3.11816506,17386.0,17385.0,0.07392709]
[1673458462895,2.60620258,17386.0,17385.0,0.07392709]
[1673458463593,2.77160258,17386.0,17385.0,0.07392709]
[1673458464788,3.28356506,17386.0,17385.0,0.07392709]
[1673458465054,2.77160258,17386.0,17385.0,0.07392709]
[1673458465815,1.71654359,17386.0,17385.0,0.07402893]
[1673458466085,1.71654359,17386.0,17385.0,0.70415293]
[1673458466337,0.30734323,17386.0,17385.0,0.70415293]
[1673458466862,0.30734323,17386.0,17385.0,0.70425477]
[1673458467408,0.30734323,17386.0,17385.0,0.70415293]
[1673458467619,0.30723279,17386.0,17385.0,2.01996893]
[1673458467877,0.17223279,17386.0,17385.0,2.66148971]
[1673458468141,0.18123279,17386.0,17385.0,2.09928171]
[1673458468381,0.17223279,17386.0,17385.0,2.08617987]
[1673458468645,0.18123279,17386.0,17385.0,2.09917987]
[1673458468901,0.18123279,17386.0,17385.0,2.09928171]
[1673458470212,0.18123279,17386.0,17385.0,2.09928006]
[1673458471482,0.18123279,17386.0,17385.0,2.09917987]
[1673458472006,0.18123279,17386.0,17385.0,2.45965587]
[1673458472510,0.18123279,17386.0,17385.0,2.09928006]
[1673458473019,0.18123279,17386.0,17385.0,1.93388006]
[1673458473254,0.18123279,17386.0,17385.0,1.93377987]
[1673458473952,0.18123279,17386.0,17385.0,1.93397681]
[1673458474470,0.18123279,17386.0,17385.0,1.93377987]
[1673458474986,0.18123279,17386.0,17385.0,1.93397681]
[1673458475451,0.18123279,17386.0,17385.0,1.93377987]
[1673458475947,0.18123279,17386.0,17385.0,0.72834603]
[1673458486473,0.86293017,17386.0,17385.0,0.72834603]
[1673458487259,1.37489265,17386.0,17385.0,0.72834603]
[1673458487784,1.5471687,17386.0,17385.0,0.72834603]
[1673458488015,1.03520622,17386.0,17385.0,0.72834603]
[1673458493051,0.86293017,17386.0,17385.0,0.72834603]
[1673458497889,1.03520622,17386.0,17385.0,0.72834603]
[1673458499170,0.86293017,17386.0,17385.0,0.72834603]
[1673458499680,1.03520622,17386.0,17385.0,0.72834603]
[1673458500193,0.86293017,17386.0,17385.0,0.72834603]
[1673458500485,1.03520622,17386.0,17385.0,0.72834603]
[1673458501205,0.86293017,17386.0,17385.0,0.72834603]
[1673458501709,0.86293017,17386.0,17385.0,0.72677503]
[1673458504662,1.03520622,17386.0,17385.0,0.72677503]
[1673458506399,0.86293017,17386.0,17385.0,0.72677503]
[1673458507149,0.18123279,17386.0,17385.0,0.72677503]
[1673458507416,0.18123279,17386.0,17385.0,1.35526595]
[1673458507666,0.18123279,17386.0,17385.0,1.5269266]
[1673458509526,0.18123279,17386.0,17385.0,2.1021346]
[1673458512338,0.009,17386.0,17385.0,2.1021346]
[1673458512602,0.009,17386.0,17385.0,2.10202492]
[1673458515702,0.009,17386.0,17385.0,1.93036427]
[1673458515944,0.009,17386.0,17385.0,1.35515627]
[1673458520711,0.009,17386.0,17385.0,2.10202492]
[1673458522930,0.56637094,17386.0,17385.0,1.52681692]
[1673458523193,0.56637094,17386.0,17385.0,1.35515627]
[1673458524480,0.56637094,17386.0,17385.0,0.72666535]
[1673458527614,0.56637094,17386.0,17385.0,0.898326]
[1673458528734,0.56637094,17386.0,17385.0,0.72666535]
[1673458530672,0.73864699,17386.0,17385.0,0.72666535]
[1673458530911,1.88920563,17386.0,17385.0,0.72666535]
[1673458532386,2.18920563,17386.0,17385.0,0.72626735]
[1673458532631,2.4476197,17386.0,17385.0,0.72626735]
[1673458533633,2.4476197,17386.0,17385.0,0.77774988]
[1673458533893,2.95958218,17386.0,17385.0,0.77774988]
[1673458534394,2.4476197,17386.0,17385.0,0.77774988]
[1673458534895,2.95958218,17386.0,17385.0,0.77774988]
[1673458535392,2.4476197,17386.0,17385.0,0.77774988]
[1673458535643,2.95958218,17386.0,17385.0,0.77774988]
[1673458536874,2.4476197,17386.0,17385.0,0.77774988]
[1673458540891,2.95958218,17386.0,17385.0,0.77774988]
[1673458541154,2.4476197,17386.0,17385.0,0.77774988]
[1673458542701,2.95958218,17386.0,17385.0,0.77774988]
[1673458543312,3.13185823,17386.0,17385.0,0.77774988]
[1673458544103,2.4477835,17386.0,17385.0,0.77774988]
[1673458544636,2.95974598,17386.0,17385.0,0.77774988]
[1673458545367,2.4477835,17386.0,17385.0,0.77774988]
[1673458547630,2.18936943,17386.0,17385.0,0.77774988]
[1673458552567,1.03881079,17386.0,17385.0,0.77774988]
[1673458553054,0.73881079,17386.0,17385.0,0.77774988]
[1673458555099,1.88937676,17386.0,17385.0,0.77774988]
[1673458555835,2.18937676,17386.0,17385.0,0.77774988]
[1673458556585,2.44779083,17386.0,17385.0,0.77774988]
[1673458557562,2.18937676,17386.0,17385.0,0.77774988]
[1673458560536,2.44779083,17386.0,17385.0,0.77774988]
[1673458561857,2.18937676,17386.0,17385.0,0.77774988]
[1673458564325,1.88937676,17386.0,17385.0,0.77774988]
[1673458572500,0.56637094,17386.0,17385.0,0.77774988]
[1673458572742,0.56637094,17386.0,17385.0,0.94941053]
[1673458573019,0.56637094,17386.0,17385.0,0.77774988]
[1673458573333,0.73881079,17386.0,17385.0,0.77774988]
[1673458573839,2.6597481,17386.0,17385.0,0.77774988]
[1673458574635,1.88937155,17386.0,17385.0,0.77774988]
[1673458576589,2.14778562,17386.0,17385.0,0.77774988]
[1673458578376,2.6597481,17386.0,17385.0,0.77774988]
[1673458578877,2.83186035,17386.0,17385.0,0.77774988]
[1673458580907,3.00436257,17386.0,17385.0,0.77774988]
[1673458581139,2.83186035,17386.0,17385.0,0.77774988]
[1673458583643,3.16266035,17386.0,17385.0,0.77774988]
[1673458583883,3.81820732,17386.0,17385.0,0.77774988]
[1673458584157,4.39338232,17386.0,17385.0,0.77774988]
[1673458584420,4.04883022,17386.0,17385.0,0.77774988]
[1673458584756,4.37963022,17386.0,17385.0,0.77774988]
[1673458585673,6.37963022,17386.0,17385.0,0.77774988]
[1673458586419,6.72451192,17386.0,17385.0,0.77774988]
[1673458587461,6.39371192,17386.0,17385.0,0.77774988]
[1673458587714,6.72351192,17386.0,17385.0,0.77774988]
[1673458588989,5.82125928,17386.0,17385.0,0.77774988]
[1673458589251,5.82125928,17386.0,17385.0,0.77768532]
[1673458589511,6.39643428,17386.0,17385.0,0.77768532]
[1673458589761,7.11752238,17386.0,17385.0,0.77768532]
[1673458590310,7.46234224,17386.0,17385.0,0.77768532]
[1673458593617,7.22344632,17386.0,17385.0,0.77768532]
[1673458595045,7.46049135,17386.0,17385.0,0.77768532]
[1673458595544,7.22344632,17386.0,17385.0,0.77768532]
[1673458596293,7.46047965,17386.0,17385.0,0.77768532]
[1673458597061,7.22344632,17386.0,17385.0,0.77768532]
[1673458598226,7.05127982,17386.0,17385.0,0.77768532]
[1673458598476,7.48196994,17386.0,17385.0,0.77768532]
[1673458598794,7.05127982,17386.0,17385.0,0.77768532]
[1673458599048,7.22344632,17386.0,17385.0,0.77768532]
[1673458599327,7.46122555,17386.0,17385.0,0.77768532]
[1673458599599,7.22344632,17386.0,17385.0,0.77768532]
[1673458599889,7.46122033,17386.0,17385.0,0.77768532]
[1673458601918,6.74012748,17386.0,17385.0,0.77768532]
[1673458602164,6.39530762,17386.0,17385.0,0.77768532]
[1673458603926,7.0959796,17386.0,17385.0,0.77768532]
[1673458604184,7.44063082,17386.0,17385.0,0.77768532]
[1673458605184,6.73995884,17386.0,17385.0,0.77768532]
[1673458605433,6.90969264,17386.0,17385.0,0.77768532]
[1673458605684,7.25432871,17386.0,17385.0,0.77768532]
[1673458606189,6.73994369,17386.0,17385.0,0.77768532]
[1673458606715,7.35087881,17386.0,17385.0,0.77768532]
[1673458607465,7.00624274,17386.0,17385.0,0.77768532]
[1673458610711,7.00624274,17386.0,17385.0,0.77759198]
[1673458612226,6.39530762,17386.0,17385.0,0.77759198]
[1673458612494,5.9646175,17386.0,17385.0,0.77759198]
[1673458613466,6.6284124,17386.0,17385.0,0.77759198]
[1673458614210,7.05930107,17386.0,17385.0,0.13617304]
[1673458614509,6.55856517,17386.0,17385.0,0.13617304]
[1673458615064,6.85856517,17386.0,17385.0,0.13617304]
[1673458616751,6.55856517,17386.0,17385.0,0.13617304]
[1673458616990,7.2256765,17386.0,17385.0,0.13617304]
[1673458617238,6.55856517,17386.0,17385.0,0.13617304]
[1673458617486,7.07861616,17386.0,17385.0,0.13617304]
[1673458617990,6.55856517,17386.0,17385.0,0.13617304]
[1673458619777,7.16382783,17386.0,17385.0,0.13617304]
[1673458620351,6.55856517,17386.0,17385.0,0.13617304]
[1673458621083,7.12501394,17386.0,17385.0,0.13617304]
[1673458621337,7.34571567,17386.0,17385.0,0.13617304]
[1673458621577,7.64571567,17386.0,17385.0,0.13617304]
[1673458622825,9.37191796,17386.0,17385.0,0.13617304]
[1673458624321,7.33671567,17386.0,17385.0,0.12317304]
[1673458624568,7.47271567,17386.0,17385.0,0.12417304]
[1673458624815,7.77271567,17386.0,17385.0,0.12417304]
[1673458625325,7.47271567,17386.0,17385.0,0.12417304]
[1673458626076,7.77271567,17386.0,17385.0,0.12417304]
[1673458626576,7.50239331,17386.0,17385.0,0.12417304]
[1673458626814,7.77272191,17386.0,17385.0,0.12417304]
[1673458629072,7.77272191,17386.0,17385.0,0.05248253]
[1673458629875,8.48562191,17386.0,17385.0,0.05248253]
[1673458630892,8.18562191,17386.0,17385.0,0.05248253]
[1673458631390,8.48562191,17386.0,17385.0,0.05248253]
[1673458631903,8.48562325,17386.0,17385.0,0.05248253]
[1673458632157,10.2118536,17386.0,17385.0,0.05248253]
[1673458632413,8.48562325,17386.0,17385.0,0.05248253]
[1673458633165,8.1871496,17386.0,17385.0,0.05248253]
[1673458634934,7.66879511,17386.0,17385.0,0.05239481]
[1673458635180,8.24829722,17386.0,17385.0,0.05239481]
[1673458635672,8.76512536,17386.0,17385.0,0.05239481]
[1673458635928,8.24829722,17386.0,17385.0,0.05239481]
[1673458636371,7.66879511,17386.0,17385.0,0.05239481]
[1673458636650,8.18562325,17386.0,17385.0,0.05239481]
[1673458636896,8.57799579,17386.0,17385.0,0.05239481]
[1673458637132,7.91529331,17386.0,17385.0,0.05239481]
[1673458637377,8.60122446,17386.0,17385.0,0.05239481]
[1673458638143,7.37149632,17386.0,17385.0,0.05239481]
[1673458639394,7.20689632,17386.0,17385.0,0.05239481]
[1673458643387,7.6380694,17386.0,17385.0,0.05239481]
[1673458644402,4.986339,17386.0,17385.0,0.05239481]
[1673458644665,4.74856974,17386.0,17385.0,0.05239481]
[1673458644922,4.40359746,17386.0,17385.0,0.05239481]
[1673458645175,4.14493413,17386.0,17385.0,0.05239481]
[1673458645426,0.82193115,17386.0,17385.0,0.05239481]
[1673458646691,0.136,17386.0,17385.0,0.05239481]
[1673458647180,0.30844222,17386.0,17385.0,0.05239481]
[1673458647426,0.136,17386.0,17385.0,0.05239481]
[1673458649005,0.30844222,17386.0,17385.0,0.05239481]
[1673458649189,0.136,17386.0,17385.0,0.05239481]
[1673458654217,0.8335775,17386.0,17385.0,0.05239481]
[1673458654719,1.00601972,17386.0,17385.0,0.05239481]
[1673458654967,0.8335775,17386.0,17385.0,0.05239481]
[1673458655286,1.00601972,17386.0,17385.0,0.05239481]
[1673458655483,0.8335775,17386.0,17385.0,0.05239481]
[1673458657540,0.8335775,17386.0,17385.0,0.21779481]
[1673458661248,1.00601972,17386.0,17385.0,0.21779481]
[1673458661694,0.8335775,17386.0,17385.0,0.21779481]
[1673458663844,0.8335775,17386.0,17385.0,0.05239481]
[1673458675610,1.00601972,17386.0,17385.0,0.05239481]
[1673458676115,0.8335775,17386.0,17385.0,0.05239481]
[1673458676866,1.00601972,17386.0,17385.0,0.05239481]
[1673458677120,0.8335775,17386.0,17385.0,0.05239481]
[1673458677371,1.00601972,17386.0,17385.0,0.05239481]
[1673458679606,2.15661826,17386.0,17385.0,0.05239481]
[1673458681360,2.92724407,17386.0,17385.0,0.05239481]
[1673458682348,3.27214882,17386.0,17385.0,0.05239481]
[1673458682642,3.0997066,17386.0,17385.0,0.05239481]
[1673458683694,3.49852445,17386.0,17385.0,0.05239481]
[1673458685020,3.27221635,17386.0,17385.0,0.05239481]
[1673458685548,3.53095011,17386.0,17385.0,0.05239481]
[1673458685860,3.27221635,17386.0,17385.0,0.05239481]
[1673458686608,4.10611465,17386.0,17385.0,0.05239481]
[1673458686856,3.09976657,17386.0,17385.0,0.05239481]
[1673458688436,3.67494157,17386.0,17385.0,0.05239481]
[1673458691182,3.8474143,17386.0,17385.0,0.05239481]
[1673458691432,3.50250955,17386.0,17385.0,0.05239481]
[1673458692190,3.2722393,17386.0,17385.0,0.05239481]
[1673458692416,2.92733455,17386.0,17385.0,0.05239481]
[1673458693111,2.41537207,17386.0,17385.0,0.05239481]
[1673458693361,1.00605023,17386.0,17385.0,0.05239481]
[1673458694131,2.15661683,17386.0,17385.0,0.05239481]
[1673458694371,2.15661768,17386.0,17385.0,0.05239481]
[1673458695907,1.00605023,17386.0,17385.0,0.05239481]
[1673458697942,0.8335775,17386.0,17385.0,0.05239481]
[1673458698693,0.8335775,17386.0,17385.0,0.0994199]
[1673458699917,1.00605023,17386.0,17385.0,0.0994199]
[1673458700408,2.15663531,17386.0,17385.0,0.0994199]
[1673458700663,2.41535861,17386.0,17385.0,0.0994199]
[1673458702640,2.15663531,17386.0,17385.0,0.0994199]
[1673458705411,1.00605023,17386.0,17385.0,0.0994199]
[1673458707708,0.8335775,17386.0,17385.0,0.0994199]
[1673458710242,0.136,17386.0,17385.0,1.48856478]
[1673458710751,0.136,17386.0,17385.0,1.31690413]
[1673458711036,0.136,17386.0,17385.0,1.48856478]
[1673458713726,0.136,17386.0,17385.0,1.31690413]
[1673458715395,0.136,17386.0,17385.0,1.48856478]
[1673458718496,0.13593469,17386.0,17385.0,3.57779848]
[1673458719494,0.000115,17387.0,17386.0,0.3]
[1673458719758,0.000115,17387.0,17386.0,1.0469622]
[1673458720265,0.000115,17387.0,17386.0,0.875175]
[1673458720816,0.006115,17387.0,17386.0,0.611175]
[1673458721556,0.006115,17387.0,17386.0,1.18635]
[1673458721804,0.006115,17387.0,17386.0,1.18654241]
[1673458724630,0.006115,17387.0,17386.0,1.18635]
[1673458724886,0.006115,17387.0,17386.0,1.18654241]
[1673458725425,0.006115,17387.0,17386.0,1.18635]
[1673458726644,0.001115,17387.0,17386.0,1.18635]
[1673458726926,0.001115,17387.0,17386.0,1.6581372]
[1673458728504,0.001115,17387.0,17386.0,1.65802248]
[1673458728798,0.001115,17387.0,17386.0,1.48623528]
[1673458729826,0.54821872,17387.0,17386.0,1.18623528]
[1673458730333,0.54321872,17387.0,17386.0,1.18623528]
[1673458730545,0.54321872,17387.0,17386.0,1.48623528]
[1673458730798,0.54321872,17387.0,17386.0,1.18623528]
[1673458733004,0.54321872,17387.0,17386.0,1.35802248]
[1673458733990,3.31111761,17388.0,17386.0,1.35802248]
[1673458735740,3.31111761,17388.0,17386.0,1.32202248]
[1673458735991,3.31811761,17388.0,17386.0,1.35102248]
[1673458737709,3.83008009,17388.0,17386.0,1.35102248]
[1673458737964,3.31811761,17388.0,17386.0,1.35102248]
[1673458738210,3.83008009,17388.0,17386.0,1.35102248]
[1673458738934,3.31811761,17388.0,17386.0,1.35102248]
[1673458739682,3.83008009,17388.0,17386.0,1.35102248]
[1673458740433,3.31811761,17388.0,17386.0,1.35102248]
[1673458741716,2.6753,17388.0,17387.0,0.53922536]
[1673458742494,2.6753,17388.0,17387.0,1.41436736]
[1673458742741,2.6683,17388.0,17387.0,1.86129656]
[1673458742987,2.6993,17388.0,17387.0,2.06629656]
[1673458743246,2.6993,17388.0,17387.0,1.86629656]
[1673458743498,2.031,17388.0,17387.0,2.12378753]
[1673458743748,2.031,17388.0,17387.0,2.11878753]
[1673458743749,2.0,17388.0,17387.0,2.11878753]
[1673458743967,2.014,17388.0,17387.0,2.15478753]
[1673458744254,0.014,17388.0,17387.0,2.77398298]
[1673458744494,0.014,17388.0,17387.0,1.89729656]
[1673458744957,2.33770984,17389.0,17387.0,2.11878753]
[1673458745212,0.014,17388.0,17387.0,1.89729656]
[1673458745964,2.33770984,17389.0,17387.0,1.86129656]
[1673458746218,2.35170984,17389.0,17387.0,1.89729656]
[1673458746461,2.33770984,17389.0,17387.0,1.86129656]
[1673458746707,0.014,17388.0,17387.0,1.89729656]
[1673458746957,2.33770984,17389.0,17387.0,1.86129656]
[1673458747960,2.33770984,17389.0,17387.0,1.89729656]
[1673458747961,2.35170984,17389.0,17387.0,1.89729656]
[1673458751683,2.35161239,17389.0,17387.0,1.89729656]
[1673458751935,2.35161239,17389.0,17387.0,2.19729656]
[1673458752197,2.35161239,17389.0,17387.0,2.15478753]
[1673458752699,2.35161239,17389.0,17388.0,0.69773175]